[Event "FRA-ch Youth U16 2018"]
[Site "Agen"]
[Date "2018.04.17"]
[Round "4"]
[White "Kollar, Romain"]
[Black "Vlachos, Anatole"]
[Result "0-1"]
[ECO "B06"]
[WhiteElo "2155"]
[BlackElo "2346"]
[Annotator "NA"]
[PlyCount "87"]
[EventDate "2018.??.??"]
[EventType "swiss"]
[EventCountry "FRA"]
[SourceTitle "playchess.com"]
[Source "ChessBase"]
[SourceQuality "1"]
[TimeControl "5400+30"]

1. e4 g6 {[%emt 0:01:37]} 2. d4 {[%emt 0:00:00]} Bg7 {[%emt 0:00:03]} 3. Nc3 {[%emt 0:00:14]} d6 {[%emt 0:00:03]} 4. Be3 {[%emt 0:00:16]} a6 {[%emt 0:00:02]} 5. Qd2 {[%emt 0:00:24]} b5 {[%emt 0:00:04]} 6. O-O-O {[%emt 0:00:29]} Bb7 {[%emt 0:00:02] B06: Modern Defence} 7. f3 {[%emt 0:00:06]} Nd7 {[%emt 0:00:05]} 8. h4 {[%emt 0:00:25]} h6 {[%emt 0:00:04]} 9. g4 {[%emt 0:00:35]} (9. Kb1 Nb6 10. Bd3 Nf6 11. Nh3 Nfd7 12. Nf4 e6 13. Nce2 {0-1 (43) Fressinet,L (2662)-Petrosian,T (2601) Riadh 2017}) 9... Rc8 {[%emt 0:00:56]} 10. Nh3 {[%emt 0:04:38] LiveBook: 3 Games} c5 {[%emt 0:03:19]} 11. dxc5 {[%emt 0:00:23]} Nxc5 {[%emt 0:00:10]} 12. Kb1 {[%emt 0:08:44]} Qa5 $146 {[%emt 0:25:17]} ({Predecessor:} 12... Ne6 13. Nd5 {½-½ (37) Todorovic,J (2394)-Kisic,B (2173) Bar 2015}) 13. Bd4 {[%emt 0:13:35]} Bxd4 {[%emt 0:16:12]} 14. Qxd4 {[%emt 0:00:11]} Nf6 {[%emt 0:00:07]} 15. Nd5 {[%emt 0:10:38]} Bxd5 {[%emt 0:05:01]} 16. exd5 {[%emt 0:00:21]} Qa4 {[%emt 0:00:24]} 17. Qxa4 {[%emt 0:12:02]} Nxa4 {[%emt 0:00:30]} 18. Nf4 {[%emt 0:00:48]} Nb6 {[%emt 0:03:23]} 19. Rd4 {[%emt 0:13:38]} Rc5 {[%emt 0:08:26]} 20. b4 {[%emt 0:01:05]} Rc3 {[%emt 0:00:02]} 21. Bd3 {[%emt 0:00:46]} Kf8 {[%emt 0:02:37]} 22. Kb2 $1 {[%emt 0:05:08]} Na4+ {[%emt 0:00:21]} 23. Kb1 {[%emt 0:00:47]} Nb6 {[%emt 0:01:13]} 24. Kb2 {[%emt 0:00:06]} Rc7 {[%emt 0:00:05]} 25. Bxg6 {[%emt 0:01:01] [#]} Rc4 $1 {[%emt 0:02:30]} 26. Rhd1 {[%emt 0:01:37]} fxg6 {[%emt 0:00:58]} 27. Nxg6+ {[%emt 0:00:26]} Kg7 {[%emt 0:00:09]} 28. Nxe7 {[%emt 0:00:53]} Rxd4 {[%emt 0:01:59]} 29. Nf5+ {[%emt 0:02:23]} Kg6 {[%emt 0:01:08]} 30. Rxd4 {[%emt 0:00:09]} Nc4+ {[%emt 0:00:50]} 31. Kb3 {[%emt 0:05:02]} Re8 $19 {[%emt 0:00:08]} 32. Rd3 {[%emt 0:01:52]} h5 {[%emt 0:03:07]} 33. a4 {[%emt 0:01:19]} hxg4 {[%emt 0:03:22]} 34. fxg4 {[%emt 0:04:47]} Re1 {[%emt 0:01:31]} 35. axb5 {[%emt 0:02:47]} axb5 {[%emt 0:00:05]} 36. Ka2 {[%emt 0:01:06]} Nxg4 {[%emt 0:03:45]} 37. Nd4 {[%emt 0:01:04]} Nge3 {[%emt 0:01:13]} 38. Nxb5 {[%emt 0:01:40]} Nxc2 {[%emt 0:00:05]} 39. Kb3 {[%emt 0:00:47]} N2e3 {[%emt 0:00:22]} 40. Nc3 {[%emt 0:01:39]} Kf5 {[%emt 0:04:36]} 41. b5 {[%emt 0:01:14]} Ke5 {[%emt 0:00:49]} 42. Kb4 {[%emt 0:03:20]} Nb6 {[%emt 0:01:03]} 43. Ka5 {[%emt 0:01:59]} Nbxd5 {[%emt 0:00:22]} 44. Ka6 {[%emt 0:00:17]} 0-1

[Event "FRA-ch Youth U16 2018"]
[Site "Agen"]
[Date "2018.04.17"]
[Round "4"]
[White "Gao, Etienne"]
[Black "Harutyunyan, Ruben"]
[Result "1-0"]
[ECO "B94"]
[WhiteElo "2129"]
[BlackElo "2305"]
[Annotator "NA"]
[PlyCount "105"]
[EventDate "2018.??.??"]
[EventType "swiss"]
[EventCountry "FRA"]
[SourceTitle "playchess.com"]
[Source "ChessBase"]
[SourceQuality "1"]
[TimeControl "5400+30"]

1. e4 {[%emt 0:00:00]} c5 {[%emt 0:00:01]} 2. Nf3 {[%emt 0:00:00]} d6 {[%emt 0:00:01]} 3. d4 {[%emt 0:00:00]} Nf6 {[%emt 0:00:03]} 4. Nc3 {[%emt 0:00:00]} cxd4 {[%emt 0:00:01]} 5. Nxd4 {[%emt 0:00:00]} a6 {[%emt 0:00:03]} 6. Bg5 {[%emt 0:00:01]} Nbd7 {[%emt 0:00:18]} 7. Bc4 {[%emt 0:04:04]} e6 {[%emt 0:01:47]} 8. Qe2 {[%emt 0:02:25] B94: Sicilian Najdorf: 6 Bg5 Nbd7} (8. a4 Qa5 9. Qd2 Be7 10. O-O h6 11. Be3 Ne5 12. Be2 Bd7 13. Kh1 Rc8 14. f4 Nc4 15. Bxc4 Rxc4 {0-1 (45) Jobava,B (2730)-Le,Q (2693) Amsterdam 2012}) 8... b5 {[%emt 0:05:37] LiveBook: 10 Games} 9. Bd5 {[%emt 0:05:48]} exd5 {[%emt 0:28:31]} 10. Nc6 {[%emt 0:00:09]} Qb6 $146 {[%emt 0:02:30]} ({Predecessor:} 10... Qc7 11. exd5+ Ne5 12. Bxf6 gxf6 13. f4 Bg7 14. fxe5 fxe5 15. g4 Bd7 {1-0 (72) Brankovic,D (2352)-Vucinic,G (2439) Kragujevac 2016}) 11. exd5+ {[%emt 0:10:52]} Ne5 {[%emt 0:00:01]} 12. Nxe5 {[%emt 0:05:10]} dxe5 {[%emt 0:00:14]} 13. Qxe5+ {[%emt 0:00:02]} Be7 {[%emt 0:07:15]} 14. Ne4 {[%emt 0:05:48]} O-O {[%emt 0:01:12]} (14... Ra7 $17 15. O-O-O Nxe4) 15. Qxe7 {[%emt 0:00:42]} Nxd5 {[%emt 0:08:01]} 16. Qc5 {[%emt 0:01:04]} Re8 {[%emt 0:01:55]} 17. O-O-O {[%emt 0:01:53]} Qxc5 {[%emt 0:16:37]} 18. Nxc5 {[%emt 0:00:06]} Nb6 {[%emt 0:00:06]} 19. b3 {[%emt 0:05:09]} Bf5 {[%emt 0:01:02]} 20. Be3 {[%emt 0:04:06]} Rac8 {[%emt 0:09:30]} (20... Nc8 $16 {was worth a try.} 21. Rhe1 Ne7) 21. Rd6 {[%emt 0:01:31]} Nd7 {[%emt 0:00:05]} 22. Nxd7 {[%emt 0:11:46]} Red8 {[%emt 0:02:27]} 23. Nf6+ {[%emt 0:00:52]} gxf6 {[%emt 0:00:07]} 24. Rxd8+ {[%emt 0:00:09]} Rxd8 {[%emt 0:00:03]} 25. Kb2 {[%emt 0:00:13]} h5 {[%emt 0:04:24]} 26. Rc1 {[%emt 0:00:39]} Be4 {[%emt 0:02:20]} 27. g3 {[%emt 0:01:12]} Bf3 {[%emt 0:03:20]} 28. c4 {[%emt 0:00:40]} Rd1 {[%emt 0:03:03]} 29. Rxd1 {[%emt 0:03:40]} Bxd1 {[%emt 0:00:01]} 30. cxb5 {[%emt 0:00:12]} axb5 {[%emt 0:00:01]} 31. Bc5 {[%emt 0:00:18]} Kg7 {[%emt 0:01:53]} 32. Kc3 {[%emt 0:00:20]} Kg6 {[%emt 0:00:51]} 33. Kb4 {[%emt 0:00:05]} Be2 {[%emt 0:00:36]} 34. Ka5 {[%emt 0:01:40]} Kf5 {[%emt 0:01:38]} 35. Kb6 {[%emt 0:00:04]} Ke6 {[%emt 0:00:23]} 36. Kc6 {[%emt 0:00:11]} f5 {[%emt 0:01:19]} 37. f4 {[%emt 0:00:44]} Bd3 {[%emt 0:00:21]} 38. Bf8 {[%emt 0:00:49]} Bb1 {[%emt 0:01:08]} 39. a4 {[%emt 0:00:05]} bxa4 $16 {[%emt 0:00:31]} 40. bxa4 {[%emt 0:00:06]} Be4+ {[%emt 0:00:40]} 41. Kc7 {[%emt 0:00:09]} h4 {[%emt 0:00:25]} 42. gxh4 {[%emt 0:00:29]} Kf6 {[%emt 0:00:31]} 43. a5 {[%emt 0:00:17]} Kg6 {[%emt 0:00:22]} 44. a6 {[%emt 0:00:11]} Kh5 {[%emt 0:00:07]} 45. a7 {[%emt 0:00:33]} Kxh4 {[%emt 0:00:20]} 46. Kb8 {[%emt 0:00:08]} Kh3 {[%emt 0:00:09]} 47. a8=Q {[%emt 0:00:10]} Bxa8 {[%emt 0:00:02]} 48. Kxa8 {[%emt 0:00:08]} Kxh2 {[%emt 0:00:05]} 49. Kb7 {[%emt 0:00:07]} Kg3 {[%emt 0:00:09]} 50. Bd6 {[%emt 0:00:11]} Kf3 {[%emt 0:00:08]} 51. Kc6 {[%emt 0:00:07]} Ke4 {[%emt 0:00:03]} 52. Kd7 {[%emt 0:00:16]} Kd5 {[%emt 0:00:05]} 53. Bb8 {[%emt 0:00:05]} 1-0

[Event "FRA-ch Youth U16 2018"]
[Site "Agen"]
[Date "2018.04.17"]
[Round "4"]
[White "Lucas, Arthur"]
[Black "Defromont, Benjamin"]
[Result "1-0"]
[ECO "C11"]
[WhiteElo "2117"]
[BlackElo "2184"]
[Annotator "NA"]
[PlyCount "97"]
[EventDate "2018.??.??"]
[EventType "swiss"]
[EventCountry "FRA"]
[SourceTitle "playchess.com"]
[Source "ChessBase"]
[SourceQuality "1"]
[TimeControl "5400+30"]

1. e4 {[%emt 0:00:00]} e6 {[%emt 0:00:08]} 2. d4 {[%emt 0:00:00]} d5 {[%emt 0:00:05]} 3. Nc3 {[%emt 0:00:00]} Nf6 {[%emt 0:00:14]} 4. e5 {[%emt 0:00:00]} Nfd7 {[%emt 0:00:15]} 5. f4 {[%emt 0:00:01]} c5 {[%emt 0:00:09]} 6. Nf3 {[%emt 0:00:05]} Nc6 {[%emt 0:00:31]} 7. Be3 {[%emt 0:00:06] LiveBook: 6280 Games} a6 {[%emt 0:00:29]} 8. Qd2 {[%emt 0:00:07]} b5 {[%emt 0:00:40]} 9. dxc5 {[%emt 0:00:20]} Bxc5 {[%emt 0:00:32]} 10. Bd3 {[%emt 0:00:21]} O-O {[%emt 0:01:05] [#]} 11. Bxc5 {[%emt 0:21:11]} (11. Bxh7+ $1 $14 {[%mdl 512]} Kxh7 12. Ng5+ Kg8 13. Qd3 Qxg5 14. fxg5 Ndxe5 15. Qe2 (15. Bxc5 Nxd3+ 16. cxd3 Rd8 $11) 15... Bxe3 16. Qxe3) 11... Nxc5 {[%emt 0:00:14]} 12. O-O {[%emt 0:00:23]} Qb6 {[%emt 0:16:35]} 13. Kh1 {[%emt 0:04:59]} b4 {[%emt 0:06:24]} 14. Ne2 {[%emt 0:01:57]} Bb7 {[%emt 0:10:21]} 15. Ng3 {[%emt 0:02:23]} f5 {[%emt 0:12:10]} 16. exf6 {[%emt 0:05:13]} Rxf6 {[%emt 0:03:09]} 17. Rae1 {[%emt 0:04:52]} g6 {[%emt 0:09:00]} 18. Ne5 {[%emt 0:04:28]} Nxe5 {[%emt 0:04:28]} 19. fxe5 {[%emt 0:00:31]} Rxf1+ {[%emt 0:00:24]} 20. Rxf1 {[%emt 0:00:16]} Nxd3 {[%emt 0:01:02]} 21. cxd3 {[%emt 0:02:59]} Rf8 {[%emt 0:07:06]} 22. Rxf8+ {[%emt 0:04:29]} Kxf8 {[%emt 0:00:01]} 23. Qf4+ {[%emt 0:01:42]} Kg8 {[%emt 0:02:37]} 24. h4 {[%emt 0:10:07]} a5 {[%emt 0:09:35]} 25. Qf6 {[%emt 0:03:53]} Ba6 {[%emt 0:03:38]} 26. Ne2 {[%emt 0:09:03]} Bc8 {[%emt 0:06:35]} 27. Nf4 {[%emt 0:12:30]} Qf2 {[%emt 0:01:37]} 28. Qd8+ {[%emt 0:06:03]} Kg7 {[%emt 0:00:18]} 29. Qf6+ {[%emt 0:00:02]} Kg8 {[%emt 0:00:17]} 30. Kh2 {[%emt 0:01:59]} d4 {[%emt 0:04:57]} 31. b3 {[%emt 0:01:56]} Qf1 {[%emt 0:00:48]} 32. Kg3 {[%emt 0:01:48]} Qc1 {[%emt 0:00:32]} 33. h5 {[%emt 0:01:29]} gxh5 {[%emt 0:00:12]} 34. Nxh5 {[%emt 0:01:05]} Qc7 {[%emt 0:00:13]} 35. Qg5+ {[%emt 0:00:22]} Kf8 {[%emt 0:01:05]} 36. Qh6+ {[%emt 0:00:17]} Ke7 {[%emt 0:00:29]} 37. Qxh7+ {[%emt 0:00:25]} Kd8 {[%emt 0:00:07]} 38. Qxc7+ {[%emt 0:00:32]} Kxc7 {[%emt 0:00:01]} 39. Kf4 {[%emt 0:00:13]} Ba6 {[%emt 0:01:22]} 40. Ke4 {[%emt 0:00:12]} Bb7+ {[%emt 0:00:01]} 41. Kxd4 {[%emt 0:00:06]} Bxg2 {[%emt 0:00:10]} 42. Nf4 {[%emt 0:00:16]} Bf1 {[%emt 0:00:48]} 43. Nxe6+ {[%emt 0:00:11]} Kc6 {[%emt 0:00:01]} 44. Nf4 {[%emt 0:00:39]} Kb5 {[%emt 0:00:24]} 45. e6 {[%emt 0:00:09]} Kc6 {[%emt 0:00:09]} 46. Ke5 {[%emt 0:00:10]} a4 {[%emt 0:00:35]} 47. Kf6 {[%emt 0:00:33]} axb3 {[%emt 0:00:08]} 48. axb3 {[%emt 0:00:05]} Bxd3 {[%emt 0:00:16]} 49. Nxd3 {[%emt 0:00:05]} 1-0

[Event "FRA-ch Youth U16 2018"]
[Site "Agen"]
[Date "2018.04.17"]
[Round "4"]
[White "Djidjeli, Sarah"]
[Black "Pascutto, Sonia"]
[Result "1-0"]
[ECO "C15"]
[WhiteElo "1903"]
[BlackElo "1480"]
[Annotator "NA"]
[PlyCount "75"]
[EventDate "2018.??.??"]
[EventType "swiss"]
[EventCountry "FRA"]
[SourceTitle "playchess.com"]
[Source "ChessBase"]
[SourceQuality "1"]
[TimeControl "5400+30"]

1. e4 {[%emt 0:00:00]} e6 {[%emt 0:00:22]} 2. d4 {[%emt 0:00:00]} d5 {[%emt 0:00:12]} 3. Nc3 {[%emt 0:00:00]} Bb4 {[%emt 0:00:33]} 4. exd5 {[%emt 0:00:00]} exd5 {[%emt 0:00:23]} 5. Bd3 {[%emt 0:00:00]} Nf6 {[%emt 0:01:33]} 6. Nge2 {[%emt 0:00:21]} O-O {[%emt 0:00:42]} 7. O-O {[%emt 0:00:30]} h6 {[%emt 0:05:12]} 8. h3 {[%emt 0:08:32]} Nc6 {[%emt 0:07:12]} 9. Be3 {[%emt 0:03:11]} Ne7 $11 {[%emt 0:01:55]} 10. Ng3 {[%emt 0:03:29]} c6 {[%emt 0:04:08]} 11. Qf3 {[%emt 0:01:34]} c5 {[%emt 0:08:37]} 12. dxc5 {[%emt 0:24:25]} Bxc3 {[%emt 0:04:48]} 13. bxc3 {[%emt 0:00:21]} Ng6 {[%emt 0:06:10]} 14. Nh5 {[%emt 0:05:43]} Nxh5 {[%emt 0:09:11]} 15. Qxh5 Be6 {[%emt 0:14:37]} 16. f4 {[%emt 0:13:39]} Bd7 {[%emt 0:08:31]} 17. f5 {[%emt 0:04:28]} Re8 {[%emt 0:11:22]} 18. Bd4 {[%emt 0:08:35]} Qh4 {[%emt 0:05:00]} 19. Qxh4 {[%emt 0:00:23]} Nxh4 {[%emt 0:00:05]} 20. g3 {[%emt 0:00:02]} Nxf5 {[%emt 0:00:16]} 21. Bxf5 {[%emt 0:00:05]} Bxf5 {[%emt 0:00:07]} 22. Rxf5 {[%emt 0:00:04]} Re2 {[%emt 0:00:08]} 23. Rf2 {[%emt 0:00:18]} Re4 {[%emt 0:00:20]} 24. Rb1 {[%emt 0:00:20]} b6 {[%emt 0:00:24]} 25. cxb6 {[%emt 0:00:43]} axb6 {[%emt 0:00:05]} 26. Rxb6 {[%emt 0:01:49]} f6 {[%emt 0:00:23]} 27. Rb5 {[%emt 0:01:27]} Rxa2 {[%emt 0:00:21]} 28. Rxd5 {[%emt 0:00:23]} Re1+ {[%emt 0:00:38]} 29. Kg2 {[%emt 0:00:11]} Raa1 {[%emt 0:00:14]} 30. c4 {[%emt 0:00:32]} Ra4 {[%emt 0:01:00]} 31. c5 {[%emt 0:01:21]} Rc4 {[%emt 0:00:28]} 32. Rd2 {[%emt 0:01:05]} Kf7 {[%emt 0:01:42]} 33. Bf2 {[%emt 0:00:27]} Re6 {[%emt 0:00:36]} 34. Rd6 {[%emt 0:03:06]} Re8 {[%emt 0:00:33]} 35. Bd4 {[%emt 0:03:43]} Re4 {[%emt 0:01:33]} 36. c3 {[%emt 0:00:29]} Re8 {[%emt 0:00:35]} 37. Rb6 {[%emt 0:00:32]} Kg6 {[%emt 0:01:54]} 38. Rb4 {[%emt 0:00:07]} 1-0

[Event "FRA-ch Youth U16 2018"]
[Site "Agen"]
[Date "2018.04.17"]
[Round "4"]
[White "Conti, Anne-Marie"]
[Black "Sabiani, Chjara"]
[Result "0-1"]
[ECO "A48"]
[WhiteElo "1865"]
[BlackElo "1723"]
[Annotator "NA"]
[PlyCount "76"]
[EventDate "2018.??.??"]
[EventType "swiss"]
[EventCountry "FRA"]
[SourceTitle "playchess.com"]
[Source "ChessBase"]
[SourceQuality "1"]
[TimeControl "5400+30"]

1. d4 {[%emt 0:01:08]} Nf6 {[%emt 0:00:10]} 2. Nf3 {[%emt 0:00:15]} g6 {[%emt 0:00:16]} 3. c4 {[%emt 0:00:18]} Bg7 {[%emt 0:00:12]} 4. g3 {[%emt 0:00:12]} O-O {[%emt 0:00:15]} 5. Bg2 {[%emt 0:00:16]} d6 {[%emt 0:00:20]} 6. O-O {[%emt 0:01:34]} c6 {[%emt 0:00:18]} 7. Nc3 {[%emt 0:00:36]} a6 {[%emt 0:00:14]} 8. a4 {[%emt 0:01:07]} a5 {[%emt 0:00:13]} 9. e4 {[%emt 0:00:57]} Nfd7 {[%emt 0:00:44] LiveBook: 9 Games} 10. Re1 {[%emt 0:02:58]} e5 {[%emt 0:00:36]} 11. Be3 {[%emt 0:03:17]} ({White should try} 11. d5 $11) 11... Na6 {[%emt 0:02:22]} 12. Qd2 {[%emt 0:03:52]} exd4 {[%emt 0:09:56]} 13. Nxd4 {[%emt 0:08:05]} Ne5 $11 {[%emt 0:00:41]} 14. Qe2 {[%emt 0:12:56]} Ng4 {[%emt 0:15:38]} 15. Rad1 {[%emt 0:02:21]} Nxe3 {[%emt 0:02:05]} 16. Qxe3 {[%emt 0:02:48]} Qe7 {[%emt 0:14:09]} 17. Rd2 {[%emt 0:15:55]} Be6 {[%emt 0:03:10]} 18. Bf1 {[%emt 0:03:22]} Nc5 {[%emt 0:06:42]} 19. Nxe6 fxe6 {[%emt 0:05:24]} 20. Bg2 {[%emt 0:16:05]} Nb3 {[%emt 0:08:06]} 21. Nd5 {[%emt 0:02:32]} cxd5 {[%emt 0:01:11]} 22. Qxb3 {[%emt 0:00:11]} d4 {[%emt 0:01:08]} 23. Rd3 {[%emt 0:02:58]} Kh8 {[%emt 0:00:56]} 24. Qb5 {[%emt 0:04:22]} e5 {[%emt 0:02:05]} 25. f3 {[%emt 0:02:29]} Bh6 {[%emt 0:01:37]} 26. Rb3 {[%emt 0:01:45]} Be3+ {[%emt 0:00:36]} 27. Kf1 {[%emt 0:01:00]} Rf7 {[%emt 0:01:07]} 28. Ke2 {[%emt 0:01:54]} Qf8 {[%emt 0:04:17]} 29. Qd5 {[%emt 0:00:25]} g5 {[%emt 0:01:38]} 30. h3 {[%emt 0:01:53]} Rc7 {[%emt 0:01:46]} 31. Rb6 {[%emt 0:04:15]} Rc5 {[%emt 0:06:04]} 32. Qxb7 {[%emt 0:05:12]} Rxc4 {[%emt 0:00:47]} 33. Kf1 {[%emt 0:02:36]} Rc2 {[%emt 0:02:50]} 34. Re2 {[%emt 0:00:02]} Rc1+ {[%emt 0:00:17]} 35. Re1 {[%emt 0:00:04]} Rac8 {[%emt 0:00:50]} 36. Ra6 {[%emt 0:01:23]} Qg8 {[%emt 0:01:49]} 37. b3 {[%emt 0:00:36]} d3 {[%emt 0:01:34]} 38. Rc6 {[%emt 0:00:38]} R8xc6 0-1

[Event "FRA-ch Youth U16 2018"]
[Site "Agen"]
[Date "2018.04.17"]
[Round "4"]
[White "Grall, Alba"]
[Black "Bellahcene, Meriem"]
[Result "1-0"]
[ECO "B38"]
[WhiteElo "1855"]
[BlackElo "1862"]
[Annotator "NA"]
[PlyCount "143"]
[EventDate "2018.??.??"]
[EventType "swiss"]
[EventCountry "FRA"]
[SourceTitle "playchess.com"]
[Source "ChessBase"]
[SourceQuality "1"]
[TimeControl "5400+30"]

1. e4 {[%emt 0:00:00]} c5 {[%emt 0:00:02]} 2. Nf3 {[%emt 0:00:00]} g6 {[%emt 0:00:15]} 3. d4 {[%emt 0:00:18]} cxd4 {[%emt 0:00:31]} 4. Nxd4 {[%emt 0:01:08]} Bg7 {[%emt 0:00:13]} 5. c4 {[%emt 0:01:59]} Nc6 {[%emt 0:00:41]} 6. Be3 {[%emt 0:00:40]} Nf6 {[%emt 0:00:30]} 7. Nc3 {[%emt 0:00:13]} O-O {[%emt 0:01:03]} 8. Be2 {[%emt 0:00:16]} d6 {[%emt 0:00:23]} 9. O-O {[%emt 0:00:32]} Bd7 {[%emt 0:05:55]} 10. Qd2 {[%emt 0:00:34]} Nxd4 {[%emt 0:01:14]} 11. Bxd4 {[%emt 0:00:05]} Bc6 {[%emt 0:01:08]} 12. f3 {[%emt 0:00:37]} Nd7 {[%emt 0:00:39]} 13. Be3 {[%emt 0:01:15]} Nc5 {[%emt 0:04:13]} 14. Rab1 {[%emt 0:05:41] LiveBook: 11 Games} a5 {[%emt 0:04:39]} 15. b3 {[%emt 0:00:17]} Qc7 {[%emt 0:05:41]} 16. Rfc1 {[%emt 0:02:51]} Rfc8 {[%emt 0:02:05]} 17. Rc2 {[%emt 0:11:32]} Qd8 {[%emt 0:07:28]} 18. a3 {[%emt 0:14:14]} Nd7 {[%emt 0:14:25] B38: Sicilian: Maroczy Bind with 5...Bg7 and 7...0-0} (18... b6 19. Bf1 h5 20. Nd5 e6 21. Nc3 Be5 22. b4 axb4 23. axb4 Nd7 24. Bd4 Qe7 {½-½ (24) Ivanisevic,I (2629)-Sedlak,N (2571) Cetinje 2009}) 19. Bf1 {[%emt 0:18:00]} h5 {[%emt 0:08:45]} 20. Kh1 $146 {[%emt 0:12:24]} ({Predecessor:} 20. Ne2 Kh7 21. Nd4 Ne5 22. Qf2 Qh8 23. h3 Bd7 24. Rd1 Nc6 25. Nb5 Be6 26. f4 {½-½ (47) Womacka,M (2397)-Jirovsky,M (2476) Germany 2006}) 20... Kh7 {[%emt 0:03:02]} 21. b4 {[%emt 0:01:02]} axb4 {[%emt 0:02:26]} 22. axb4 {[%emt 0:00:13]} Ne5 {[%emt 0:02:53]} 23. b5 $11 {[%emt 0:02:28]} Bd7 {[%emt 0:05:22]} 24. Nd5 {[%emt 0:00:29]} Ra3 {[%emt 0:01:57]} 25. Nb6 {[%emt 0:04:27]} Rb8 {[%emt 0:02:50]} 26. Bf2 {[%emt 0:06:22]} Be6 {[%emt 0:07:15]} 27. Qb4 {[%emt 0:01:59]} Ra7 {[%emt 0:00:03]} 28. Nd7 {[%emt 0:02:08]} Rba8 {[%emt 0:01:19]} 29. Bxa7 {[%emt 0:01:26]} Rxa7 {[%emt 0:00:01]} 30. Nxe5 {[%emt 0:00:10]} Bxe5 {[%emt 0:00:04]} 31. Qd2 {[%emt 0:05:16]} Qa8 {[%emt 0:01:58]} 32. Qg5 {[%emt 0:04:41]} Bf6 {[%emt 0:00:03]} 33. Qc1 {[%emt 0:00:23]} Bd4 {[%emt 0:04:50]} 34. Qd2 {[%emt 0:00:57]} Be5 {[%emt 0:00:23]} 35. Qg5 {[%emt 0:00:55]} Bf6 {[%emt 0:00:04]} 36. Qd2 {[%emt 0:00:04]} Be5 {[%emt 0:00:03]} 37. Qf2 {[%emt 0:00:40]} Ra3 {[%emt 0:04:24]} 38. Qh4 {[%emt 0:00:34]} Bf6 {[%emt 0:00:04]} 39. Qf2 {[%emt 0:00:06]} Be5 {[%emt 0:00:03]} 40. Qh4 {[%emt 0:00:29]} Bf6 {[%emt 0:00:01]} 41. Qf2 {[%emt 0:00:04]} Be5 {[%emt 0:00:01]} 42. Qd2 {[%emt 0:00:12]} Ra7 {[%emt 0:00:23]} 43. Rd1 {[%emt 0:00:15]} Ra3 {[%emt 0:03:41]} 44. Rb1 {[%emt 0:00:15]} b6 {[%emt 0:00:33]} 45. Qf2 {[%emt 0:02:17]} Qa7 {[%emt 0:00:08]} 46. Qd2 {[%emt 0:00:14]} Qa8 {[%emt 0:00:16]} 47. Rcc1 {[%emt 0:00:25]} Ra2 {[%emt 0:02:49]} 48. Rc2 {[%emt 0:00:10]} Ra3 {[%emt 0:00:01]} 49. Rcc1 {[%emt 0:00:12]} Ra2 {[%emt 0:00:01]} 50. Rc2 {[%emt 0:00:06]} Ra3 {[%emt 0:00:01]} 51. Be2 {[%emt 0:00:17]} Qa7 {[%emt 0:00:29]} 52. Rf1 {[%emt 0:00:33]} Ra1 {[%emt 0:05:26]} 53. Rxa1 Qxa1+ {[%emt 0:00:01]} 54. Rc1 {[%emt 0:01:19]} Qa3 {[%emt 0:00:40]} 55. Rf1 {[%emt 0:00:50]} Qc3 {[%emt 0:00:32]} 56. Qxc3 {[%emt 0:00:40]} Bxc3 {[%emt 0:00:02]} 57. Rc1 {[%emt 0:00:14]} Bd4 {[%emt 0:01:15]} 58. Rc2 {[%emt 0:00:31]} Kg7 {[%emt 0:00:53]} 59. Bf1 {[%emt 0:01:16]} Kf6 {[%emt 0:00:36]} 60. g3 {[%emt 0:00:27]} g5 {[%emt 0:00:50]} 61. Kg2 {[%emt 0:00:35]} Bc5 {[%emt 0:00:30]} 62. f4 {[%emt 0:01:04]} Bc8 {[%emt 0:01:57]} 63. Bd3 {[%emt 0:01:00]} Bb4 {[%emt 0:01:03]} 64. Rf2 {[%emt 0:00:23]} g4 {[%emt 0:00:26]} 65. Re2 {[%emt 0:00:16]} e5 {[%emt 0:00:45]} 66. Rf2 {[%emt 0:00:57]} Ke7 {[%emt 0:00:24]} 67. Kf1 {[%emt 0:00:14]} f6 {[%emt 0:00:29]} 68. Ra2 {[%emt 0:00:26]} Ba5 {[%emt 0:00:03]} 69. Ke2 {[%emt 0:00:19]} Bb7 {[%emt 0:00:26]} 70. f5 {[%emt 0:00:30]} Kd8 {[%emt 0:00:54]} 71. Ra1 {[%emt 0:00:06]} Kc7 72. Rh1 {[%emt 0:00:19]} 1-0